Cogmind - Beta 14 @@@ ROGUE MODE // 2024.12.14 @ 12:21:06 Player: Mathewnd Result: Destroyed by Y-54 Guardian with Gatling Laser Performance ------------- Evolutions (3) 1500 Regions Visited (5) 1000 Robots Destroyed (42) 210 Value Destroyed (912) 912 Prototype IDs (2) 40 Alien Tech Used (0) 0 Bonus (206) 206 TOTAL SCORE: 3868 Bonus ------- High Alert Combat Kills 6 Entered Garrisons 200 Cogmind --------- Core Integrity 0/700 Matter 263/300 Energy 100/100 System Corruption 0% Temperature Cool (12) Movement Core (50) Location -7/Garrison Parts ------- > --- POWER (1) -------- (None) > --- PROPULSION (4) --- (None) > --- UTILITY (6) ------ Visual Processing Unit Improved Signal Interpreter > --- WEAPON (2) ------- (None) > --- INVENTORY (5) ---- Sensor Array Improved Signal Interpreter Improved Melee Analysis Suite Microactuators System Shield Peak State ------------ > --- POWER ------------ Light Deuterium Engine > --- PROPULSION ------- Flight Unit Flight Unit Flight Unit Flight Unit > --- UTILITY ---------- Small Storage Unit Visual Processing Unit Sensor Array Improved Signal Interpreter System Shield System Shield > --- WEAPON ----------- Medium Laser Grenade Launcher > --- INVENTORY -------- Visual Processing Unit Sensor Array Improved Signal Interpreter Microactuators System Shield Particle Gun Particle Gun Improved Datajack [Rating: 24] Favorites ----------- Power Light Ion Engine Engine Light Ion Engine Propulsion Aluminum Leg Treads Light Treads Leg Aluminum Leg Flight Unit Flight Unit Utility Small Storage Unit Device Sensor Array Storage Small Storage Unit Processor Signal Interpreter Hackware System Shield Protection Medium Armor Plating Weapon Medium Laser Energy Gun Medium Laser Ballistic Gun Light Assault Rifle Launcher Grenade Launcher Special Melee Weapon Improved Datajack Build | -11 -10 -9 -8 -7 -7 ------- Run | Yrd Mat Mat Mat Fac Gar Slots Evolved 6 | . . 2 2 2 . Power . | . . . . . . Propulsion 2 | . . 1 1 . . Utility 4 | . . 1 1 2 . Weapon . | . . . . . . Parts Attached 43 | 6 1 21 11 2 2 Power 4 | 1 . 2 1 . . Engine 4 | 1 . 2 1 . . Core . | . . . . . . Reactor . | . . . . . . Propulsion 15 | 2 . 8 4 . 1 Treads 3 | . . 3 . . . Leg 7 | 2 . 4 . . 1 Wheel . | . . . . . . Hover . | . . . . . . Flight 5 | . . 1 4 . . Utility 11 | 1 1 3 4 2 . Device 2 | . . 2 . . . Storage 2 | 1 . . 1 . . Processor 3 | . 1 . 1 1 . Hackware 3 | . . . 2 1 . Protection 1 | . . 1 . . . Artifact . | . . . . . . Weapon 13 | 2 . 8 2 . 1 Energy Gun 3 | . . 2 . . 1 Energy Cannon . | . . . . . . Ballistic Gun 5 | 2 . 3 . . . Ballistic Cannon . | . . . . . . Launcher 4 | . . 2 2 . . Special Weapon . | . . . . . . Impact Weapon . | . . . . . . Slashing Weapon . | . . . . . . Piercing Weapon . | . . . . . . Special Melee Weapon 1 | . . 1 . . . Unidentified Prototypes . | . . . . . . Parts Lost 25 | . . 10 2 . 13 Power 4 | . . 2 1 . 1 Propulsion 9 | . . 4 . . 5 Utility 7 | . . 2 1 . 4 Weapon 5 | . . 2 . . 3 Highest Loss Streak 13 | . . 2 2 . 13 To Critical Strikes . | . . . . . . Average Slot Usage (%) 91 | . 86 93 92 100 87 Engine 9 | . 14 10 3 7 6 Treads 4 | . . 8 . . . Leg 17 | . 28 22 . . . Flight 9 | . . . 35 30 23 Device 4 | . . 4 9 7 6 Storage 10 | . 14 11 8 7 7 Processor 9 | . 1 11 9 15 15 Hackware 3 | . . . 8 15 14 Protection 1 | . . 2 . . . Energy Gun 6 | . . 8 9 7 6 Ballistic Gun 11 | . 28 11 . . . Launcher 2 | . . 1 7 7 5 Peak Build Rating 24 | 6 7 12 18 23 24 Average Rating 10 | 4 6 9 14 22 21 On Entrance 11 | . 6 7 12 18 23 Naked Turns . | . . . . . . Heaviest Build 22 | 11 11 22 16 16 16 Greatest Support 60 | 20 20 60 16 16 16 Greatest Overweight (x) 4 | . . 1 . . 4 Average Overweight (x) . | . . . . . . Largest Inventory Capacity 8 | 8 8 8 8 8 8 Average Capacity 7 | 6 8 8 7 8 7 Most Carried 8 | 6 8 8 8 6 8 Average Carried 6 | 3 7 6 4 5 6 Final Capacity 8 | 8 8 8 8 8 5 Final Carried 8 | 6 7 8 7 5 5 Class Distribution -------------------- 40% | Scavenger-Mutant 39% | Mutant 9% | Scavenger-Sprinter 8% | Scavenger-Scout Dominant Class ---------------- Mutant | -10/Materials Scavenger-Mutant | -9/Materials Scavenger-Mutant | -8/Materials Scavenger-Scout | -7/Factory Scavenger-Scout | -7/Garrison Resources | -11 -10 -9 -8 -7 -7 ----------- Run | Yrd Mat Mat Mat Fac Gar Matter Collected 922 | 245 140 204 52 183 98 Remotely . | . . . . . . Salvage Created 945 | . 233 443 157 . 112 Parts 77 | . 17 42 11 . 7 Haulers Intercepted . | . . . . . . Recyclers Shooed 5 | . 1 1 3 . . Parts Field Recycled . | . . . . . . Retrieved Matter . | . . . . . . Parts Self-Destructed . | . . . . . . Prevented . | . . . . . . Kills | -11 -10 -9 -8 -7 -7 ------- Run | Yrd Mat Mat Mat Fac Gar Combat Hostiles Destroyed 34 | . 7 17 6 . 4 Guns 14 | . 7 5 . . 2 AOE 20 | . . 12 6 . 2 Classes Destroyed 7 | . 4 1 1 . 1 Worker 2 | . . . 2 . . Recycler 2 | . 1 1 . . . Watcher 4 | . 1 2 1 . . Swarmer 21 | . 6 12 3 . . Grunt 8 | . 1 2 3 . 2 Duelist 2 | . . . . . 2 Sentry 3 | . . 3 . . . Best Kill Streak 7 | . 3 7 4 . 2 Combat Bots Only 7 | . 3 7 3 . 2 Max Kills in Single Turn 4 | . 1 4 2 . 1 Gunslinging . | . . . . . . Exploded 4 | . . 4 2 . 1 Melee . | . . . . . . Uniques/NPCs Destroyed . | . . . . . . Combat | -11 -10 -9 -8 -7 -7 -------- Run | Yrd Mat Mat Mat Fac Gar Hostile Shots Fired 455 | . 42 100 30 . 283 Missed 177 | . 8 27 18 . 124 Damage Taken 2675 | . 283 961 190 . 1241 Core 982 | . 47 167 59 . 709 Absorbed by Shields . | . . . . . . Regen/Repaired (Parts) 106 | . . . 106 . . Core Remaining (%) 82 | 100 81 58 89 . . Volleys Fired 103 | . 32 42 15 . 14 Largest 2 | . 2 2 2 . 2 Hottest 80 | . 40 80 80 . 80 Shots Fired 185 | . 64 77 18 . 26 Gun 158 | . 64 68 12 . 14 Cannon . | . . . . . . Launcher 27 | . . 9 6 . 12 Special . | . . . . . . Kinetic 104 | . 64 40 . . . Thermal 54 | . . 28 12 . 14 Explosive 27 | . . 9 6 . 12 Electromagnetic . | . . . . . . Robot Hit Streak 12 | . 4 12 11 . 8 Robot Miss Streak 5 | . 3 5 2 . 3 Penetration Max . | . . . . . . Secondary Targets 2 | . 1 1 . . . Max Gunslinging Chain 1 | . 1 1 . . . Shots Hit Robots 111 | . 36 47 12 . 16 Core Hits 79 | . 13 31 17 . 18 Critical Kills . | . . . . . . Critical Parts Destroyed 1 | . 1 . . . . Critical Strikes 2 | . 1 1 . . . Burn 1 | . . 1 . . . Destroy 1 | . 1 . . . . Melee Attacks . | . . . . . . Impact . | . . . . . . Slashing . | . . . . . . Piercing . | . . . . . . Sneak Attacks . | . . . . . . Combat Hostiles . | . . . . . . Follow-up Attacks . | . . . . . . Damage Inflicted 2533 | . 363 1000 595 . 575 Guns 1056 | . 363 480 100 . 113 Cannons . | . . . . . . Explosions 1477 | . . 520 495 . 462 Melee . | . . . . . . Ramming . | . . . . . . Kinetic 616 | . 363 253 . . . Thermal 440 | . . 227 100 . 113 Explosive 1477 | . . 520 495 . 462 Electromagnetic . | . . . . . . Impact . | . . . . . . Slashing . | . . . . . . Piercing . | . . . . . . Highest Corruption . | . . . . . . Average Corruption . | . . . . . . Corruption Purged . | . . . . . . Corruption Blocked . | . . . . . . Overload Shots . | . . . . . . Overflow Damage 30 | . . 28 2 . . Projectiles . | . . . . . . Explosions 30 | . . 28 2 . . Melee . | . . . . . . Knockbacks . | . . . . . . Impact . | . . . . . . Kinetic . | . . . . . . Secondary . | . . . . . . Self-Inflicted Damage 91 | . . 63 13 . 15 Shots 4 | . . 2 1 . 1 Rammed . | . . . . . . Targets Rammed . | . . . . . . Kicked . | . . . . . . Crushed . | . . . . . . Highest Temperature 130 | . 6 130 37 . 44 Average Temperature 25 | . 6 31 21 . 13 Received Heat Transfer 726 | . 24 234 63 . 405 Siege Activations . | . . . . . . Robots Corrupted . | . . . . . . Combat Hostiles . | . . . . . . Parts Fried . | . . . . . . Impact Corruptions . | . . . . . . Robots Melted . | . . . . . . Combat Hostiles . | . . . . . . Parts Melted 3 | . . 3 . . . Heat Transferred 1369 | . . 740 296 . 333 Parts Sabotaged . | . . . . . . Parts Stolen . | . . . . . . Parts Stripped . | . . . . . . Power Chain Reactions . | . . . . . . Alert | -11 -10 -9 -8 -7 -7 ------- Run | Yrd Mat Mat Mat Fac Gar Peak Influence 493 | . 257 290 493 153 233 Initial 153 | . . 26 83 153 107 Average 144 | . 113 130 232 153 161 Maximum Alert Level 2 | . 1 1 2 . 1 Low Security (%) 74 | 100 86 85 22 100 74 Level 1 25 | . 13 14 75 . 25 Level 2 . | . . . 1 . . Level 3 . | . . . . . . Level 4 . | . . . . . . Level 5 . | . . . . . . High Security . | . . . . . . Max Security . | . . . . . . Squads Dispatched 1 | . . . 1 . . Investigation 1 | . . . 1 . . Extermination . | . . . . . . Reinforcement . | . . . . . . Assault . | . . . . . . Garrison . | . . . . . . Intercept . | . . . . . . Searches Triggered . | . . . . . . Construction Impeded . | . . . . . . Haulers Reinforced . | . . . . . . Active Scanning Responses . | . . . . . . Cargo Convoy Interrupts . | . . . . . . Stealth | -11 -10 -9 -8 -7 -7 --------- Run | Yrd Mat Mat Mat Fac Gar Distress Signals 10 | . 2 4 4 . . Communications Jammed . | . . . . . . Distress Signals . | . . . . . . Times Spotted 73 | . 16 27 24 . 6 Peak Tracking Total 12 | . 5 5 12 . 3 Tactical Retreats 9 | . 2 2 5 . . Traps | -11 -10 -9 -8 -7 -7 ------- Run | Yrd Mat Mat Mat Fac Gar Traps Triggered 1 | . . . . . 1 Indirectly . | . . . . . . Trap Hack Attempts . | . . . . . . Triggered . | . . . . . . Disarmed . | . . . . . . Reprogrammed . | . . . . . . Reused . | . . . . . . Traps Extracted . | . . . . . . Installed . | . . . . . . Triggered . | . . . . . . Machines | -11 -10 -9 -8 -7 -7 ---------- Run | Yrd Mat Mat Mat Fac Gar Machines Disabled 4 | . . 3 1 . . Max in Single Turn 1 | . . 1 1 . . Machines Repaired . | . . . . . . Machines Dismantled . | . . . . . . Machines Sabotaged . | . . . . . . Overloaded Fab Kills . | . . . . . . Hacking | -11 -10 -9 -8 -7 -7 --------- Run | Yrd Mat Mat Mat Fac Gar Machines Accessed 13 | . 1 5 6 1 . Terminals 8 | . 1 3 4 . . Fabricators . | . . . . . . Repair Stations 1 | . . . 1 . . Recycling Units 3 | . . 2 1 . . Scanalyzers . | . . . . . . Garrison Access 1 | . . . . 1 . Total Hacks 33 | . 1 11 19 2 . Successful 18 | . . 8 9 1 . Failed 15 | . 1 3 10 1 . Catastrophic 3 | . 1 1 1 . . Database Lockouts . | . . . . . . Manual 1 | . . . 1 . . Terminals 20 | . 1 9 10 . . Fabricators . | . . . . . . Repair Stations 6 | . . . 6 . . Recycling Units 5 | . . 2 3 . . Scanalyzers . | . . . . . . Garrison Access 2 | . . . . 2 . Terminal Hacks 10 | . . 6 4 . . Record 1 | . . 1 . . . Prototype ID Bank 1 | . . . 1 . . Emergency Access Points 2 | . . 1 1 . . Alert Level 2 | . . 2 . . . Unreport Threat 1 | . . 1 . . . Locate Traps 1 | . . . 1 . . Dispatch Records 1 | . . 1 . . . Reinforcement Status 1 | . . . 1 . . Fabricator Hacks . | . . . . . . Repair Station Hacks 4 | . . . 4 . . Scan Component 2 | . . . 2 . . Repair 2 | . . . 2 . . Recycling Unit Hacks 3 | . . 2 1 . . Report Inventory 3 | . . 2 1 . . Scanalyzer . | . . . . . . Garrison Access Hacks 1 | . . . . 1 . Unlock Access 1 | . . . . 1 . Unauthorized Hacks . | . . . . . . Terminals . | . . . . . . Fabricators . | . . . . . . Repair Stations . | . . . . . . Recycling Units . | . . . . . . Scanalyzers . | . . . . . . Garrison Access . | . . . . . . Data Cores Recovered . | . . . . . . Used . | . . . . . . Hacking Detections 10 | . 1 3 6 . . Full Trace Events 2 | . . . 2 . . Feedback Events . | . . . . . . Feedback Blocked . | . . . . . . Robot Schematics Acquired . | . . . . . . Robots Built . | . . . . . . Authchips . | . . . . . . Time . | . . . . . . Total Robot Build Rating . | . . . . . . Part Schematics Acquired . | . . . . . . Parts Built . | . . . . . . Authchips . | . . . . . . Time . | . . . . . . Total Part Build Rating . | . . . . . . Parts Repaired 2 | . . . 2 . . Time 52 | . . . 52 . . Parts Recycled . | . . . . . . Recycled Matter . | . . . . . . Retrieved Matter . | . . . . . . Retrieved Components . | . . . . . . Parts Scanalyzed . | . . . . . . Part Schematics Acquired . | . . . . . . Parts Damaged . | . . . . . . Bothacking | -11 -10 -9 -8 -7 -7 ------------ Run | Yrd Mat Mat Mat Fac Gar Used RIF Installer . | . . . . . . Robots Hacked . | . . . . . . Non-combat . | . . . . . . Combat . | . . . . . . Robot Hacks Applied . | . . . . . . Relay Couplers Released . | . . . . . . Fabnet Peak Effective % . | . . . . . . Robots Rewired . | . . . . . . Allies Hacked . | . . . . . . Hacks Repelled . | . . . . . . Allies | -11 -10 -9 -8 -7 -7 -------- Run | Yrd Mat Mat Mat Fac Gar Total Allies . | . . . . . . Largest Group . | . . . . . . Highest-Rated Group . | . . . . . . Highest-Rated Ally . | . . . . . . Total Orders . | . . . . . . Ally Attacks . | . . . . . . Total Damage . | . . . . . . Kills . | . . . . . . Allies Corrupted . | . . . . . . Allies Melted . | . . . . . . Intel | -11 -10 -9 -8 -7 -7 ------- Run | Yrd Mat Mat Mat Fac Gar Robot Analysis Total . | . . . . . . Derelict Logs Recovered . | . . . . . . Drone Launches . | . . . . . . Drone Recoveries . | . . . . . . Exploration | -11 -10 -9 -8 -7 -7 ------------- Run | Yrd Mat Mat Mat Fac Gar Turns Passed 2387 | 75 481 1140 427 23 241 Spaces Moved 2244 | 52 258 630 899 67 338 Core 15 | 7 . . . . 8 Treads 177 | . . 177 . . . Legs 767 | 45 258 453 . . 11 Wheels . | . . . . . . Hover . | . . . . . . Flight 1285 | . . . 899 67 319 Fastest Speed 31 | 50 120 120 31 31 31 Average Speed 73 | 110 120 133 32 31 41 Slowest Speed 280 | 120 120 190 34 31 280 Overloaded Moves . | . . . . . . Propulsion Burnouts . | . . . . . . Robots Hopped 10 | . . . 10 . . Cave-ins Triggered . | . . . . . . Exploration Rate (%) 25 | 5 33 42 47 2 24 Regions Visited 5 Branch Regions . Pre-discovered Areas . | . . . . . . Known Exits Taken 4 | . 1 1 1 1 . Unknown Exits Taken 1 | 1 . . . . . Scrap Searched . | . . . . . . Spaces Dug . | . . . . . . Terrain Destroyed 143 | . . 52 36 . 55 Melee . | . . . . . . Projectile . | . . . . . . AOE 143 | . . 52 36 . 55 Terrain Rammed . | . . . . . . Walls Destroyed . | . . . . . . Machines Disabled . | . . . . . . Actions | -11 -10 -9 -8 -7 -7 --------- Run | Yrd Mat Mat Mat Fac Gar Total 2793 | 69 375 859 1009 69 412 Wait 330 | . 71 142 83 . 34 Move 2220 | 51 257 629 878 67 338 Hop 10 | . . . 10 . . Pick Up 50 | 12 8 16 9 . 5 Fast Attach 4 | . . 3 . . 1 Attach 32 | 6 1 13 9 2 1 Detach 3 | . . 3 . . . Swap 7 | . . 5 2 . . Drop 16 | . 6 6 3 . 1 Fire 103 | . 32 42 15 . 14 Melee . | . . . . . . Ram . | . . . . . . Kick . | . . . . . . Crush . | . . . . . . Escape Stasis 18 | . . . . . 18 Rewire . | . . . . . . Trap . | . . . . . . Miscellaneous . | . . . . . . Route ------- -11/Scrapyard -10/Materials (discovered 2 exits: *Mat / *Min) -9/Materials -8/Materials -7/Factory -7/Garrison History --------- Turn | Location | Event 7 | -11/Scrapyard | Discovered new exit (range 15) 76 | -11/Scrapyard | Entered Materials 190 | -10/Materials | Discovered new exit (range 9) 312 | -10/Materials | Build established: Mutant 523 | -10/Materials | Identified exit to Mines 537 | -10/Materials | Discovered new exit (range 15) 554 | -10/Materials | Identified exit to Materials 557 | -10/Materials | Entered another Materials area 557 | -9/Materials | Evolved 2 slots: Propulsion x1, Utility x1 1230 | -9/Materials | Destroyed 7 combat bots 1531 | -9/Materials | Build established: Scavenger-Mutant 1667 | -9/Materials | Discovered new exit (range 5) 1673 | -9/Materials | Identified exit to Materials 1697 | -9/Materials | Entered another Materials area 1697 | -8/Materials | Evolved 2 slots: Propulsion x1, Utility x1 1870 | -8/Materials | Repaired Grenade Launcher 1898 | -8/Materials | Repaired Sml. Storage Unit 2115 | -8/Materials | Discovered new exit (range 7) 2123 | -8/Materials | Identified exit to Factory 2124 | -8/Materials | Entered Factory 2124 | -7/Factory | Evolved 2 slots: Utility x2 2147 | -7/Factory | Identified exit to Garrison 2147 | -7/Factory | Entered Garrison 2189 | -7/Garrison | Triggered checkpoint 2313 | -7/Garrison | Triggered checkpoint 2376 | -7/Garrison | Core integrity fell below 50% 2384 | -7/Garrison | Core integrity fell below 20% 2388 | -7/Garrison | Destroyed by Y-54 Guardian with Gatling Laser Last Messages --------------- Field strength at 5. Stasis field depleted. Beams of light sweep through the air. An alarm sounds. Flight Unit destroyed. Med. Laser destroyed. Grenade Launcher destroyed. Flight Unit destroyed. Lgt. Deuterium Engine destroyed. Sensor Array destroyed. The unstable cave ceiling collapses. System Shield destroyed. Particle Gun destroyed. Acquired Particle Gun. Acquired Carbon-fiber Leg. Carbon-fiber Leg destroyed. The unstable cave ceiling collapses. Sml. Storage Unit destroyed. System Shield destroyed. The unstable cave ceiling collapses. Map ----- +----------------------------------------------------+ | ???? ???????????????????????????????????? | | ? ???? ???????????????????????????????????? | | ???# ???# #???????????????????????????????????? | | ## ## ############????????????????????????? | | #????????????????????????? | | #????????????????????????? | | #????????????????????????? | | ##""""############# #????????????????????????? | | ????????????????????# #????????????????????????? | | ????????????????????# #????????????????????????? | | ????????????????????# #????????????????????????? | | ????????????????????# #????????????????????????? | | ????????????????????# #????????????????????????? | | ????????????????????# ######## #??????????????? | | ????????????????????# #??????????????? | | ????????????????????# #??????????????? | | ????????????????????# ### ####??????????????? | | ????????????????????# ???? #?????????????????? | | ????????????????????# ?????##?????????????????? | | ????????????????????# #????????????????????????? | | ????????????????????# #????????????????????????? | | ????????????????????# #????????????????????????? | | ????????????????????# ##?########??????????????? | | ????????????????????# #?# # #####??????????? | | ????????????????????# ###### # # #########??? | | ????????????????????# Y@/ #??? | | ????????????????????# Y #??? | | ???????????????????## #??? | | ??????????????######= ##### # # ##### #??? | | ??????????????# # ##???# ## #??# #??? | | ?????????###### ### = ##????##### ###??# #??? | | ?????????# ##?????????####????# #??? | | ?????????# #??????????????????# #??? | | ?????????###### #### #??????????????????# #??? | | ?????????????#"""""?####??????????????????# #??? | | ?????????????######???????????????????????# #??? | | ??????????????????????????????????????????# #??? | | ??????????????????????????????????????????# #??? | | ??????????????????????????????????????????# #??? | | ??????????????????????????????????????????#####??? | | ?????????????????????????????????????????????????? | | ?????????????????????????????????????????????????? | | ?????????????????????????????????????????????????? | | ?????????????????????????????????????????????????? | | ?????????????????????????????????????????????????? | | ?????????????????????????????????????????????????? | | ?????????????????????????????????????????????????? | | ?????????????????????????????????????????????????? | | ?????????????????????????????????????????????????? | | ?????????????????????????????????????????????????? | +----------------------------------------------------+ Best States ------------- Heat Dissipation 34 Energy Generation 14 Energy Capacity 265 Matter Stores 300 Matter Capacity 300 Sight Range 18 Robot Scan Range 14 Terrain Scan Density 10 Armor Coverage 225 Evasion (%) 63 Recoil Reduction 3 Defensive Hacking 20 Item Schematics ----------------- None Robot Schematics ------------------ None Fabricated ------------ Nothing Alien Tech Used ----------------- None Achievements -------------- Hey, That's Mine! Challenges ------------ None Game ------ Seed SniperHeavyExoskeleton Manual? 0 Play Time 00:31:13 Cumulative 33.9 hours Start 2024.12.14 @ 11:49:46 End 2024.12.14 @ 12:21:06 Sessions 1 Manual Loads 0 Difficulty Rogue Special Mode None Game No. 39 Rogue 39 Adventurer 0 Explorer 0 Win Type - Total 0 Types 0/0/0/0/0/0/0/0/0 Lore% 17 Gallery% 30 Achievement% 29 Wizard Run 0 Options --------- Layout 1 ASCII 0 Keyboard 0 Movement Mouse Keybinds 0 Fullscreen 1 Font 24/Smallcaps Map View 50x35 Zoom Use 0% Tactical HUD 0 Map Filters NONE Filters NONE Steam 1 RUN: 2a5c40e9-d358-421e-9a39-0b8ab6dbb19b